{"text_format":"2","workbook":"xlsx","n_sheets":3,"sheets":["Round 1","Round 2","Round 3"],"not_rendered":{"charts":0,"images":0,"macros":0,"external_links":0,"defined_names":0,"comments":0,"pivot_tables":0},"unopened":[],"bounds":{"document_bytes":16777216,"sheet_cells":100000,"run_cost":"one","rows_first":2000,"rows_last":500,"rows_between":2000,"halvings":0,"cell_chars":16384,"cell_head_chars":4096},"cells_cut":0,"cells_raw":0,"read":"whole","date_system":"1900"}

{"sheet":"Round 1","index":0,"n_rows":20,"n_cols":4,"rows_kept":20,"cut":false,"hidden":false,"merged":[]}
[{"$f":"\"Round 1 - \"&$D$1","v":"Round 1 - Sports and Entertainment"},null,null,"Sports and Entertainment"]
["1.","Will Disney+ be successful in convincing more Americans to ditch cable?"]
[{"$f":"\"Round 1 - \"&$D$1","v":"Round 1 - Sports and Entertainment"}]
["2.","Is Martin Scorsese correct in saying that the MCU is not cinema?"]
[{"$f":"\"Round 1 - \"&$D$1","v":"Round 1 - Sports and Entertainment"}]
["3.","Should the NFL be held accountable for all its players who contract CTE?"]
[{"$f":"\"Round 1 - \"&$D$1","v":"Round 1 - Sports and Entertainment"}]
["4.","Should Representative Jim Jordan be removed from office for not having acted when told the allegations about Richard Strauss. "]
[{"$f":"\"Round 1 - \"&$D$1","v":"Round 1 - Sports and Entertainment"}]
["5.","Will Li Li Leung be successful in bringing back USA Gymnastics?"]
[{"$f":"\"Round 1 - \"&$D$1","v":"Round 1 - Sports and Entertainment"}]
["6.","Should professional athletes be allowed to compete in the Olympics?"]
[{"$f":"\"Round 1 - \"&$D$1","v":"Round 1 - Sports and Entertainment"}]
["7.","What should be the NCAA's response to California's passing a law that states that college players can be paid for endorsements?"]
[{"$f":"\"Round 1 - \"&$D$1","v":"Round 1 - Sports and Entertainment"}]
["8.","What are the implications of Lil Nas X winning a CMA for \"Old Town Road\" after it got booted from the Billboard Country Music charts?"]
[{"$f":"\"Round 1 - \"&$D$1","v":"Round 1 - Sports and Entertainment"}]
["9."," Did Lizzo plagiarize?"]
[{"$f":"\"Round 1 - \"&$D$1","v":"Round 1 - Sports and Entertainment"}]
["10.","Who will benefit the most from Colin Kaepernick's winning his arbitration--Kaepernick or the NFL?"]

{"sheet":"Round 2","index":1,"n_rows":20,"n_cols":4,"rows_kept":20,"cut":false,"hidden":false,"merged":[]}
[{"$f":"\"Round 2 - \"&$D$1","v":"Round 2 - NATO"},null,null,"NATO"]
["1.","Will NATO be able to gain supremacy in the arctic waterways?"]
[{"$f":"\"Round 2 - \"&$D$1","v":"Round 2 - NATO"}]
["2.","Will NATO or Russia win the Baltic tug of war?"]
[{"$f":"\"Round 2 - \"&$D$1","v":"Round 2 - NATO"}]
["3.","Does NATO have the resources it needs to tamp down Russia's incursions into the North Atlantic?"]
[{"$f":"\"Round 2 - \"&$D$1","v":"Round 2 - NATO"}]
["4.","What is the biggest problem NATO is facing in the Mediterranean?"]
[{"$f":"\"Round 2 - \"&$D$1","v":"Round 2 - NATO"}]
["5.","Is NATO headed for a breakup?"]
[{"$f":"\"Round 2 - \"&$D$1","v":"Round 2 - NATO"}]
["6.","Are the Trump administrations criticisms of NATO justified?"]
[{"$f":"\"Round 2 - \"&$D$1","v":"Round 2 - NATO"}]
["7.","Should NATO give Turkey the boot?"]
[{"$f":"\"Round 2 - \"&$D$1","v":"Round 2 - NATO"}]
["8.","Does Ukraine deserve a spot in NATO?"]
[{"$f":"\"Round 2 - \"&$D$1","v":"Round 2 - NATO"}]
["9.","Is the NATO alliance still meaningful?"]
[{"$f":"\"Round 2 - \"&$D$1","v":"Round 2 - NATO"}]
["10.","Does NATO need to do more to push back against China's growing strength in international seaways?"]

{"sheet":"Round 3","index":2,"n_rows":20,"n_cols":4,"rows_kept":20,"cut":false,"hidden":false,"merged":[]}
[{"$f":"\"Round 3 - \"&$D$1","v":"Round 3 - 2019 Election results"},null,null,"2019 Election results"]
["1.","Are the Virginia election results a sign of a permanent or temporary shift to blue?"]
[{"$f":"\"Round 3 - \"&$D$1","v":"Round 3 - 2019 Election results"}]
["2.","Is the election of a Democrat to be Kentucky governer a sign of a political shift?"]
[{"$f":"\"Round 3 - \"&$D$1","v":"Round 3 - 2019 Election results"}]
["3.","Which election outcome is the best sign of the GOP's 2020 prospects?"]
[{"$f":"\"Round 3 - \"&$D$1","v":"Round 3 - 2019 Election results"}]
["4.","Which election outcome is the best sign of the Democrats' 2020 prospects?"]
[{"$f":"\"Round 3 - \"&$D$1","v":"Round 3 - 2019 Election results"}]
["5.","What do the voter turnout statistics signal about 2020?"]
[{"$f":"\"Round 3 - \"&$D$1","v":"Round 3 - 2019 Election results"}]
["6.","Do the New Jersey results signal that New Jersey is shifting red?"]
[{"$f":"\"Round 3 - \"&$D$1","v":"Round 3 - 2019 Election results"}]
["7.","What are the implications of the GOP's loss of a Philadelphia city council seat to a third party candidate?"]
[{"$f":"\"Round 3 - \"&$D$1","v":"Round 3 - 2019 Election results"}]
["8.","Who will win the battle over Marcy's Law in Pennsylvania--the judicial branch or the people's vote?"]
[{"$f":"\"Round 3 - \"&$D$1","v":"Round 3 - 2019 Election results"}]
["9.","Was Donald Trump's position hurt by having backed losing candidates?"]
[{"$f":"\"Round 3 - \"&$D$1","v":"Round 3 - 2019 Election results"}]
["10.","What are the implications for Missisippi in 2020, based on their having elected a Republican governor?"]